bitfinex/quotes_BTCUSD_20251230
["timestamp","ask_amount","ask_price","bid_price","bid_amount"]
[1767062738892,0.01072043,87132.0,87120.0,1.4e-07]
[1767062739070,0.01147697,87131.0,87120.0,1.4e-07]
[1767062739246,0.0114771,87130.0,87120.0,1.4e-07]
[1767062739689,0.01147776,87125.0,87120.0,1.4e-07]
[1767062739905,0.01147789,87124.0,87120.0,1.4e-07]
[1767062740063,0.01147776,87125.0,87120.0,1.4e-07]
[1767062740258,0.01147789,87124.0,87109.0,0.0004864]
[1767062740460,0.01147881,87117.0,87109.0,0.0004864]
[1767062740664,0.01147842,87120.0,87109.0,0.0004864]
[1767062740923,0.01147855,87119.0,87109.0,0.0004864]
[1767062741480,0.01147907,87115.0,87109.0,4e-07]
[1767062741877,0.01147881,87117.0,87109.0,4e-07]
[1767062742227,0.01147894,87116.0,87109.0,4e-07]
[1767062742624,0.01147881,87117.0,87109.0,4e-07]
[1767062743119,0.01147907,87115.0,87096.0,0.1477]
[1767062743322,0.01147921,87114.0,87096.0,0.14780806]
[1767062743524,0.01147907,87115.0,87101.0,0.01148092]
[1767062743819,0.01147921,87114.0,87100.0,0.01148105]
[1767062744179,0.01147907,87115.0,87100.0,0.01148105]
[1767062744400,0.01147921,87114.0,87100.0,0.01148105]
[1767062744971,0.01147921,87114.0,87096.0,0.01158964]
[1767062744972,0.01147947,87112.0,87096.0,0.01158964]
[1767062745172,0.01152,87111.0,87098.0,0.01148131]
[1767062746037,0.01152,87111.0,87100.0,0.01148105]
[1767062746463,0.01152,87111.0,87097.0,0.06888861]
[1767062746612,0.01152,87111.0,87098.0,0.01148131]
[1767062750914,0.01147987,87109.0,87096.0,0.00010806]
[1767062751314,0.06888082,87107.0,87096.0,0.00010806]
[1767062751516,0.01148066,87103.0,87096.0,0.00010806]
[1767062751916,0.01148066,87103.0,87092.0,0.01152]
[1767062752119,0.00010786,87103.0,87092.0,0.01152]
[1767062753165,0.00010786,87103.0,87092.0,0.02300211]
[1767062753307,0.00010786,87103.0,87093.0,0.01148197]
[1767062753864,0.00010786,87103.0,87094.0,0.01148184]
[1767062754075,8.6e-07,87103.0,87092.0,0.02300211]
[1767062754280,8.6e-07,87103.0,87093.0,0.01148197]
[1767062755373,8.6e-07,87103.0,87094.0,0.01148184]
[1767062755584,8.6e-07,87103.0,87092.0,0.01148211]
[1767062755780,8.6e-07,87103.0,87093.0,0.01148197]
[1767062756684,8.6e-07,87103.0,87092.0,0.01183711]
[1767062757572,8.6e-07,87103.0,87092.0,0.000355]
[1767062757965,8.6e-07,87103.0,87090.0,0.01152]
[1767062758168,8.6e-07,87103.0,87091.0,0.01148224]
[1767062758383,0.01148152,87103.0,87090.0,0.02300237]
[1767062758610,8.6e-07,87103.0,87091.0,0.01148224]
[1767062759206,8.6e-07,87103.0,87090.0,0.02300237]
[1767062760457,0.01148092,87101.0,87090.0,0.01152]
[1767062760631,0.01148079,87102.0,87090.0,0.01152]
[1767062761030,0.01148152,87103.0,87090.0,0.01152]
[1767062761813,0.01148152,87103.0,87090.0,0.02300237]
[1767062762231,8.6e-07,87103.0,87091.0,0.01148224]
[1767062763056,8.6e-07,87103.0,87092.0,0.05741055]
[1767062763285,8.6e-07,87103.0,87094.0,0.01148184]
[1767062763414,8.6e-07,87103.0,87095.0,0.01148171]
[1767062765896,8.6e-07,87103.0,87096.0,0.01148158]
[1767062766777,8.6e-07,87103.0,87095.0,0.01148171]
[1767062768534,8.6e-07,87103.0,87094.0,0.01148184]
[1767062768748,8.6e-07,87103.0,87095.0,0.01148171]
[1767062769570,8.6e-07,87103.0,87093.0,0.01148197]
[1767062770143,8.6e-07,87103.0,87094.0,0.01148184]
[1767062770800,8.6e-07,87103.0,87093.0,0.01148197]
[1767062771095,8.6e-07,87103.0,87092.0,0.01148211]
[1767062771308,8.6e-07,87103.0,87093.0,0.01148197]
[1767062771509,0.00017,87093.0,87089.0,0.01721254]
[1767062771923,0.01148152,87103.0,87089.0,0.01721254]
[1767062772446,0.01148092,87101.0,87087.0,0.01148277]
[1767062772587,0.01148092,87101.0,87085.0,0.01148303]
[1767062772588,0.00017,87089.0,87085.0,0.01148303]
[1767062773007,0.00017,87089.0,87084.0,0.01148316]
[1767062773171,0.01152,87096.0,87082.0,0.01148342]
[1767062773596,0.01152,87096.0,87085.0,0.01148303]
[1767062774752,0.01152,87096.0,87086.0,0.0114829]
[1767062775705,0.01152,87096.0,87084.0,0.01148316]
[1767062775911,0.01152,87096.0,87086.0,0.0114829]
[1767062776391,0.01152,87096.0,87087.0,0.01148277]
[1767062776577,0.01152,87096.0,87085.0,0.01148303]
[1767062778166,0.01152,87096.0,87086.0,0.0114829]
[1767062778368,0.00017,87086.0,87080.0,0.08042161]
[1767062778585,0.00017,87086.0,87082.0,0.01148342]
[1767062778950,0.02300158,87096.0,87082.0,0.01148342]
[1767062779526,0.01152,87096.0,87082.0,0.01148342]
[1767062779727,0.01152,87096.0,87084.0,0.01148316]
[1767062780073,0.01152,87096.0,87086.0,0.0114829]
[1767062780676,0.01152,87096.0,87087.0,0.01148277]
[1767062781255,0.01152,87096.0,87086.0,0.0114829]
[1767062781623,0.01152,87096.0,87085.0,0.01148303]
[1767062782608,0.1377284,87086.0,87085.0,0.01148303]
[1767062782813,0.1373494,87086.0,87085.0,0.01148303]
[1767062783355,0.1373494,87086.0,87085.0,0.01062078]
[1767062783683,0.1373494,87086.0,87083.0,0.01148329]
[1767062786396,0.01152,87096.0,87083.0,0.01148329]
[1767062786562,0.1377284,87086.0,87083.0,0.01148329]
[1767062786744,0.1377284,87086.0,87079.0,0.0002135]
[1767062786946,0.000549,87083.0,87079.0,3.5e-06]
[1767062787285,0.1377284,87086.0,87079.0,3.5e-06]
[1767062788100,0.01148303,87085.0,87079.0,3.5e-06]
[1767062788309,0.01148316,87084.0,87079.0,3.5e-06]
[1767062788510,0.01148303,87085.0,87079.0,3.5e-06]
[1767062788682,0.01148316,87084.0,87079.0,3.5e-06]
[1767062788899,0.1492113,87086.0,87079.0,3.5e-06]
[1767062789132,0.01148303,87085.0,87079.0,3.5e-06]
[1767062789333,0.01148329,87083.0,87079.0,3.5e-06]
[1767062790992,0.02300342,87082.0,87079.0,3.5e-06]
[1767062791139,0.05741801,87081.0,87079.0,3.5e-06]
[1767062791341,0.05741801,87081.0,87065.0,0.01148567]
[1767062791342,0.01148369,87080.0,87073.0,7.05e-06]
[1767062792185,0.01148395,87078.0,87073.0,7.05e-06]
[1767062792591,0.01148382,87079.0,87073.0,7.05e-06]
[1767062792987,0.01148395,87078.0,87073.0,7.05e-06]
[1767062793604,0.01148369,87080.0,87073.0,7.05e-06]
[1767062793785,0.01148382,87079.0,87073.0,7.05e-06]
[1767062793992,0.01148369,87080.0,87073.0,7.05e-06]
[1767062794147,0.01148356,87081.0,87073.0,7.05e-06]
[1767062794562,0.01148369,87080.0,87066.0,0.0002135]
[1767062794760,0.1377284,87072.0,87066.0,0.0002135]
[1767062795599,0.1377284,87072.0,87066.0,0.01169903]
[1767062795994,0.1377284,87072.0,87067.0,0.0114854]
[1767062796250,0.01152,87075.0,87071.0,0.01148488]
[1767062796827,0.01152,87075.0,87069.0,0.06891025]
[1767062797586,0.1377284,87086.0,87069.0,0.06891025]
[1767062797805,0.01152,87085.0,87071.0,0.01148488]
[1767062798175,0.02300303,87085.0,87071.0,0.01148488]
[1767062798630,0.01152,87085.0,87073.0,0.01148461]
[1767062798854,0.01152,87085.0,87074.0,0.01148448]
[1767062799232,0.01152,87085.0,87075.0,0.01148435]
[1767062799436,0.01152,87085.0,87075.0,0.05742176]
[1767062799646,0.01152,87085.0,87074.0,0.01148448]
[1767062800055,0.01152,87085.0,87075.0,0.01148435]
[1767062800641,0.01152,87085.0,87074.0,0.01148448]
[1767062800837,0.01152,87085.0,87075.0,0.01148435]
[1767062801842,0.1377284,87090.0,87077.0,0.01148408]
[1767062802040,0.01152,87089.0,87075.0,0.01148435]
[1767062802483,0.01152,87089.0,87080.0,0.06890179]
[1767062802687,0.01152,87089.0,87080.0,0.01148369]
[1767062803351,0.01152,87089.0,87081.0,0.01148356]
[1767062803776,0.01152,87089.0,87080.0,0.01148369]
[1767062803976,0.01152,87089.0,87081.0,0.01148356]
[1767062804216,0.01152,87089.0,87082.0,0.01148342]
[1767062805653,0.01148171,87095.0,87084.0,0.01148316]
[1767062805654,0.01152,87095.0,87084.0,0.01148316]
[1767062805804,0.01147767,87095.0,87081.0,0.01148356]
[1767062805998,0.001099,87081.0,87076.0,0.01152]
[1767062806202,0.01148237,87090.0,87070.0,0.01148501]
[1767062806446,0.01148303,87085.0,87071.0,0.01152]
[1767062806620,0.0114829,87086.0,87071.0,0.01152]
[1767062806821,0.02300263,87088.0,87073.0,0.01148461]
[1767062807050,0.02300263,87088.0,87075.0,0.01148435]
[1767062807226,0.02300263,87088.0,87074.0,0.01148448]
[1767062808053,0.01148277,87087.0,87074.0,0.01148448]
[1767062808439,0.01148277,87087.0,87070.0,0.58029803]
[1767062808440,0.000549,87074.0,87068.0,0.01152]
[1767062808822,0.01148382,87079.0,87066.0,0.02357936]
[1767062809021,0.01148369,87080.0,87066.0,0.02357936]
[1767062809224,0.01148395,87078.0,87066.0,0.01209383]
[1767062809470,0.01148408,87077.0,87066.0,0.00057383]
[1767062809678,0.01148435,87075.0,87066.0,0.00057383]
[1767062809824,0.01148422,87076.0,87066.0,3.83e-06]
[1767062810024,0.01148474,87072.0,87066.0,3.83e-06]
[1767062810277,0.01148488,87071.0,87057.0,0.01148672]
[1767062810514,0.02300461,87073.0,87059.0,0.01148646]
[1767062810714,0.01152,87073.0,87061.0,0.01148619]
[1767062811499,0.02300461,87073.0,87060.0,0.01148633]
[1767062811663,0.01152,87073.0,87059.0,0.01148646]
[1767062811849,0.02300461,87073.0,87059.0,0.01148646]
[1767062812286,0.01148474,87072.0,87058.0,0.01148659]
[1767062812491,0.02300461,87073.0,87059.0,0.01148646]
[1767062812856,0.01152,87073.0,87061.0,0.01148619]
[1767062813266,0.01152,87073.0,87062.0,0.01148606]
[1767062814139,0.01152,87073.0,87060.0,0.53435995]
[1767062814278,0.01152,87073.0,87061.0,0.01148619]
[1767062814689,0.01152,87073.0,87060.0,0.53435995]
[1767062814896,0.01152,87073.0,87062.0,0.01148606]
[1767062815690,0.01152,87073.0,87059.0,0.01148646]
[1767062815892,0.02300461,87073.0,87059.0,0.01148646]
[1767062816093,0.02300461,87073.0,87060.0,0.01148633]
[1767062816332,0.01148474,87072.0,87057.0,0.01159372]
[1767062816533,0.02300461,87073.0,87059.0,0.01148646]
[1767062816731,0.01152,87073.0,87060.0,0.01148633]
[1767062816936,0.01152,87073.0,87061.0,0.01148619]
[1767062817130,0.01152,87073.0,87057.0,0.01159372]
[1767062817131,0.000549,87061.0,87057.0,0.011627]
[1767062817574,0.01148527,87068.0,87057.0,0.000107]
[1767062817780,0.01148527,87068.0,87054.0,0.01152]
[1767062817781,0.01148567,87065.0,87054.0,0.01152]
[1767062817907,0.000107,87057.0,87051.0,0.01148751]
[1767062818110,0.01148567,87065.0,87050.0,0.01152]
[1767062818308,0.01148567,87065.0,87046.0,0.0002142]
[1767062818309,0.01148593,87063.0,87046.0,0.01170237]
[1767062818512,0.06891572,87063.0,87048.0,0.01148791]
[1767062818911,0.01148606,87062.0,87048.0,0.01148791]
[1767062819077,0.01148633,87060.0,87046.0,0.02322237]
[1767062819301,0.01148633,87060.0,87047.0,0.01148804]
[1767062819617,0.01148633,87060.0,87046.0,0.0117342]
[1767062819784,0.01148633,87060.0,87046.0,0.02322237]
[1767062819985,0.01148646,87059.0,87046.0,0.0117342]
[1767062820195,0.01148633,87060.0,87046.0,0.0117342]
[1767062820379,0.01148659,87058.0,87046.0,0.0117342]
[1767062820573,0.01148646,87059.0,87046.0,0.0117342]
[1767062820968,0.01148633,87060.0,87046.0,0.02322237]
[1767062821183,0.01148646,87059.0,87046.0,0.0117342]
[1767062821365,0.01148646,87059.0,87046.0,0.0002142]
[1767062821573,0.01148633,87060.0,87046.0,0.01170237]
[1767062821785,0.01148619,87061.0,87047.0,0.01148804]
[1767062821988,0.00010798,87065.0,87052.0,0.01148738]
[1767062822170,0.00010798,87065.0,87049.0,0.06892644]
[1767062822365,0.00010798,87065.0,87051.0,0.01148751]
[1767062822796,0.01159365,87065.0,87051.0,0.01148751]
[1767062823209,0.0114858,87064.0,87050.0,0.52287362]
[1767062823410,0.0114858,87064.0,87050.0,0.53436127]
[1767062823724,0.00010798,87065.0,87052.0,0.01148738]
[1767062823935,0.00010798,87065.0,87055.0,0.01148699]
[1767062824092,0.00010798,87065.0,87053.0,0.01148725]
[1767062824298,0.00010798,87065.0,87054.0,0.01148712]
[1767062824500,0.00010798,87065.0,87055.0,0.01148699]
[1767062824714,0.00010798,87065.0,87054.0,0.01148712]
[1767062824964,0.01159365,87065.0,87052.0,0.01152]
[1767062825191,0.00010798,87065.0,87052.0,0.02300738]
[1767062825595,0.00010798,87065.0,87054.0,0.01148712]
[1767062826138,0.00010798,87065.0,87055.0,0.01148699]
[1767062826338,0.00010798,87065.0,87054.0,0.01148712]
[1767062826582,0.00010798,87065.0,87054.0,0.06892272]
[1767062826786,0.00010798,87065.0,87057.0,0.01148672]
[1767062826985,0.00010798,87065.0,87058.0,0.01148659]
[1767062827866,0.00010798,87065.0,87059.0,0.01148646]
[1767062828270,0.00010798,87065.0,87055.0,0.01148699]
[1767062828519,0.00010798,87065.0,87056.0,0.01148685]
[1767062828726,0.00010798,87065.0,87055.0,0.01148699]
[1767062828967,0.00010798,87065.0,87056.0,0.01148685]
[1767062829585,0.00010798,87065.0,87057.0,0.01148672]
[1767062829876,0.00010798,87065.0,87056.0,0.01148685]
[1767062830405,0.00010798,87065.0,87057.0,0.01148672]
[1767062830912,0.00010798,87065.0,87058.0,0.01148659]
[1767062831238,0.00010798,87065.0,87057.0,0.01148672]
[1767062831975,0.00010798,87065.0,87059.0,0.01148646]
[1767062832195,0.01152,87066.0,87052.0,0.01152]
[1767062832196,0.01152,87070.0,87054.0,0.05743497]
[1767062832337,0.02300501,87070.0,87056.0,0.01148685]
[1767062832542,0.01148527,87068.0,87055.0,0.01148699]
[1767062833241,0.01148553,87066.0,87054.0,0.00010798]
[1767062833696,0.0114854,87067.0,87054.0,0.0115951]
[1767062833850,0.01148553,87066.0,87054.0,0.00010798]
[1767062834055,0.01148527,87068.0,87052.0,0.01152]
[1767062834272,0.00010806,87068.0,87056.0,0.01148685]
[1767062834475,0.00010806,87068.0,87055.0,0.01148699]
[1767062834687,0.00010806,87068.0,87056.0,0.01148685]
[1767062834886,0.00010806,87068.0,87057.0,0.01148672]
[1767062835123,0.00010806,87068.0,87058.0,0.01148659]
[1767062835556,0.00010806,87068.0,87059.0,0.01148646]
[1767062836571,0.00010806,87068.0,87062.0,0.01148606]
[1767062836843,0.00010806,87068.0,87061.0,0.01148619]
[1767062837244,0.00010806,87068.0,87060.0,0.01148633]
[1767062837595,0.00010806,87068.0,87059.0,0.01148646]
[1767062838019,0.00010806,87068.0,87058.0,0.01148659]
[1767062838220,0.00010806,87068.0,87053.0,0.48473334]
[1767062838423,0.00010806,87068.0,87056.0,0.01148685]
[1767062838751,0.00010806,87068.0,87060.0,0.01148633]
[1767062839667,0.00010806,87068.0,87061.0,0.01148619]
[1767062839823,0.00010806,87068.0,87059.0,0.01148646]
[1767062840026,0.00010806,87068.0,87057.0,0.06892029]
[1767062840363,0.00010806,87068.0,87057.0,0.01148672]
[1767062841823,0.00010806,87068.0,87058.0,0.01148659]
[1767062842560,0.00010806,87068.0,87059.0,0.01148646]
[1767062842978,0.00010806,87068.0,87058.0,0.01148659]
[1767062843756,0.00010806,87068.0,87056.0,0.01148685]
[1767062843979,0.00010806,87068.0,87057.0,0.01148672]
[1767062845837,0.00010806,87068.0,87058.0,0.01148659]
[1767062846574,0.00010806,87068.0,87056.0,0.01148685]
[1767062846951,0.00010806,87068.0,87057.0,0.01148672]
[1767062848087,0.00010806,87068.0,87058.0,0.01148659]
[1767062848261,0.00010806,87068.0,87059.0,0.01148646]
[1767062849205,0.00010806,87068.0,87058.0,0.01148659]
[1767062849628,0.00010806,87068.0,87059.0,0.01148646]
[1767062850211,0.00010806,87068.0,87058.0,0.01148659]
[1767062850385,0.00010806,87068.0,87059.0,0.01148646]
[1767062850992,0.00010806,87068.0,87060.0,0.01148633]
[1767062851691,0.00010806,87068.0,87059.0,0.01148646]
[1767062851898,0.00010806,87068.0,87060.0,0.01148633]
[1767062852525,0.00010806,87068.0,87059.0,0.01148646]
[1767062852687,0.00010806,87068.0,87060.0,0.01148633]
[1767062852886,0.00010806,87068.0,87059.0,0.01148646]
[1767062853102,0.00010806,87068.0,87058.0,0.01148659]
[1767062853298,0.00010806,87068.0,87057.0,0.01148672]
[1767062853499,0.00010806,87068.0,87058.0,0.01148659]
[1767062853695,0.00010806,87068.0,87059.0,0.01148646]
[1767062853915,0.00010806,87068.0,87058.0,0.01148659]
[1767062854119,0.00010806,87068.0,87059.0,0.01148646]
[1767062854584,0.00010806,87068.0,87058.0,0.01148659]
[1767062854914,0.00010806,87068.0,87059.0,0.01148646]
[1767062855313,0.00010806,87068.0,87058.0,0.01148659]
[1767062855536,0.00010806,87068.0,87059.0,0.01148646]
[1767062856648,0.01152,87070.0,87060.0,0.01148633]
[1767062856866,0.010163,87070.0,87065.0,0.05742835]
[1767062857022,3e-06,87070.0,87067.0,0.0114854]
[1767062857224,3e-06,87070.0,87067.0,0.06891183]
[1767062857426,0.01152,87077.0,87073.0,0.01148461]
[1767062857650,0.01073375,87076.0,87071.0,0.01148488]
[1767062857855,0.01073375,87075.0,87070.0,0.01148501]
[1767062858049,0.01073375,87074.0,87068.0,0.01148527]
[1767062858250,0.000549,87068.0,87065.0,0.01148567]
[1767062858650,0.01152,87077.0,87065.0,0.01148567]
[1767062858651,0.01152,87077.0,87066.0,0.01148553]
[1767062858863,0.01073277,87076.0,87067.0,0.0114854]
[1767062859064,0.01073277,87075.0,87067.0,0.0114854]
[1767062859267,0.01073277,87074.0,87066.0,0.06891257]
[1767062859527,0.01073277,87073.0,87066.0,0.06891257]
[1767062859665,0.01152,87077.0,87066.0,0.06891257]
[1767062859871,0.01073245,87076.0,87067.0,0.0114854]
[1767062860064,0.01073245,87075.0,87067.0,0.0114854]
[1767062860271,0.01073245,87074.0,87066.0,0.01148553]
[1767062860551,0.01152,87077.0,87067.0,0.0114854]
[1767062860764,0.01073137,87076.0,87068.0,0.01148527]
[1767062860937,0.01073137,87075.0,87068.0,0.01148527]
[1767062861152,1.37e-06,87074.0,87069.0,0.01148514]
[1767062861481,1.37e-06,87074.0,87065.0,0.05742801]
[1767062861482,0.001099,87069.0,87046.0,0.0002142]
[1767062861616,0.06891496,87064.0,87055.0,0.01152]
[1767062861800,0.01148593,87063.0,87055.0,0.01152]
[1767062862002,0.01148619,87061.0,87055.0,0.01152]
[1767062862208,0.01148593,87063.0,87055.0,0.01152]
[1767062862406,0.01148606,87062.0,87055.0,0.010971]
[1767062862606,0.01148619,87061.0,87047.0,0.15918804]
[1767062862814,0.01148619,87061.0,87048.0,0.01152]
[1767062863426,0.01148633,87060.0,87048.0,0.02300791]
[1767062863608,0.01148606,87062.0,87048.0,0.02300791]
[1767062864570,0.01148633,87060.0,87048.0,0.02300791]
[1767062864774,0.01148619,87061.0,87048.0,0.02300791]
[1767062866558,0.01148606,87062.0,87049.0,0.01148778]
[1767062866739,0.01148619,87061.0,87050.0,0.01152]
[1767062866936,0.01148606,87062.0,87050.0,0.01152]
[1767062867144,0.01148593,87063.0,87050.0,0.02300765]
[1767062867341,0.06902302,87064.0,87050.0,0.02300765]
[1767062867547,0.01148593,87063.0,87050.0,0.02300765]
[1767062868381,0.01148606,87062.0,87050.0,0.01148765]
[1767062868531,0.01148593,87063.0,87051.0,0.01152]
[1767062868730,0.00010806,87064.0,87052.0,0.02300738]
[1767062868931,0.00010806,87064.0,87052.0,0.01152]
[1767062869136,0.00010806,87064.0,87052.0,0.02300738]
[1767062869377,0.01159386,87064.0,87052.0,0.02300738]
[1767062869574,0.01159386,87064.0,87052.0,0.01152]
[1767062871758,0.01148606,87062.0,87051.0,0.01152]
[1767062872903,0.01148593,87063.0,87051.0,0.01152]
[1767062873709,0.01148606,87062.0,87051.0,0.01152]
[1767062873886,0.01148593,87063.0,87051.0,0.01152]
[1767062874421,0.01148606,87062.0,87049.0,0.0003256]
[1767062874572,0.01148606,87062.0,87052.0,0.01152]
[1767062875014,0.06902353,87064.0,87052.0,0.01152]
[1767062875015,0.01159386,87064.0,87052.0,0.01152]
[1767062875490,0.06902315,87064.0,87052.0,0.0116996]
[1767062875806,0.01159386,87064.0,87052.0,0.0116996]
[1767062876007,0.00010806,87064.0,87052.0,0.02318698]
[1767062876859,0.00010806,87064.0,87052.0,0.0116996]
[1767062877218,0.00010806,87064.0,87052.0,0.02318698]
[1767062877427,0.00010806,87064.0,87053.0,0.01148725]
[1767062877732,0.00010806,87064.0,87052.0,0.02318698]
[1767062878758,0.01159386,87064.0,87052.0,0.0116996]
[1767062879448,0.01148593,87063.0,87053.0,0.01152]
[1767062879810,0.01148606,87062.0,87052.0,0.0001796]
[1767062880144,0.01159386,87064.0,87041.0,0.01152017]
[1767062880145,0.01148765,87050.0,87041.0,0.01152017]
[1767062880352,0.01166638,87052.0,87041.0,0.01152017]
[1767062880513,0.01148738,87052.0,87041.0,1.7e-07]
[1767062880707,0.01148725,87053.0,87041.0,1.7e-07]
[1767062881025,0.01148751,87051.0,87041.0,1.7e-07]
[1767062881212,0.01148725,87053.0,87041.0,1.7e-07]
[1767062881614,0.06892055,87057.0,87041.0,0.011489]
[1767062881821,0.02221184,87056.0,87043.0,0.01148857]
[1767062882004,0.01148712,87054.0,87041.0,1.7e-07]
[1767062882219,0.01148751,87051.0,87041.0,1.7e-07]
[1767062882426,0.01148725,87053.0,87041.0,1.7e-07]
[1767062882864,0.01148738,87052.0,87041.0,1.7e-07]
[1767062883264,0.01148751,87051.0,87041.0,1.7e-07]
[1767062883473,0.01148765,87050.0,87041.0,1.7e-07]
[1767062883873,0.01148751,87051.0,87041.0,1.7e-07]
[1767062884078,0.01148765,87050.0,87041.0,1.7e-07]
[1767062885303,0.01148751,87051.0,87041.0,1.7e-07]
[1767062885605,0.01148765,87050.0,87041.0,1.7e-07]
[1767062885799,0.01148751,87051.0,87041.0,1.7e-07]
[1767062886226,0.01148738,87052.0,87041.0,1.7e-07]
[1767062886380,0.01148765,87050.0,87041.0,1.7e-07]
[1767062886584,0.01148699,87055.0,87041.0,1.7e-07]
[1767062886784,0.01148712,87054.0,87041.0,1.7e-07]
[1767062887209,0.01148712,87054.0,87041.0,0.011489]
[1767062887420,0.01148725,87053.0,87041.0,1.7e-07]
[1767062887793,0.01148738,87052.0,87041.0,1.7e-07]
[1767062888134,0.01148725,87053.0,87041.0,1.7e-07]
[1767062888341,0.01152,87058.0,87045.0,0.01148831]
[1767062888501,0.01152,87058.0,87047.0,0.01148804]
[1767062888696,0.01152,87058.0,87046.0,0.02300817]
[1767062889134,0.02300659,87058.0,87046.0,0.01152]
[1767062889336,0.01152,87058.0,87047.0,0.01148804]
[1767062889888,0.00010806,87064.0,87052.0,0.01148738]
[1767062890099,0.00010806,87064.0,87054.0,0.01148712]
[1767062890220,0.00010806,87064.0,87053.0,0.01148725]
[1767062890424,0.00010806,87064.0,87052.0,0.01148738]
[1767062891303,0.01148593,87063.0,87050.0,0.01148765]
[1767062891986,0.01159386,87064.0,87051.0,0.01148751]
[1767062892197,0.00010806,87064.0,87052.0,0.01148738]
[1767062894292,0.01071826,87063.0,87052.0,0.01148738]
[1767062894498,0.00010806,87064.0,87052.0,0.01148738]
[1767062894698,0.01071826,87063.0,87052.0,0.01148738]
[1767062894905,0.00010806,87064.0,87052.0,0.01148738]
[1767062895067,0.01071826,87063.0,87053.0,0.01148725]
[1767062895264,0.00010806,87064.0,87052.0,0.01148738]
[1767062895474,0.01071852,87063.0,87053.0,0.01148725]
[1767062895774,0.00010806,87064.0,87052.0,0.01148738]
[1767062895955,0.01071852,87063.0,87053.0,0.01148725]
[1767062896164,0.00010806,87064.0,87053.0,0.01148725]
[1767062896362,0.01071846,87063.0,87051.0,0.01148751]
[1767062896563,0.00010806,87064.0,87053.0,0.01148725]
[1767062896837,0.01071881,87063.0,87055.0,0.01148699]
[1767062896962,0.00010806,87064.0,87055.0,0.01148699]
[1767062897166,0.00010806,87064.0,87054.0,0.01148712]
[1767062897601,0.00010806,87064.0,87056.0,0.01148685]
[1767062897780,0.00010806,87064.0,87055.0,0.01148699]
[1767062897986,0.00010806,87064.0,87056.0,0.01148685]
[1767062898396,0.01125793,87065.0,87057.0,0.01148672]
[1767062898753,0.000146,87070.0,87060.0,0.05743165]
[1767062898899,0.01152,87072.0,87063.0,0.01148593]
[1767062899101,0.01152,87072.0,87065.0,0.01148567]
[1767062899296,0.03632917,87079.0,87073.0,0.01148461]
[1767062899297,0.000146,87079.0,87073.0,0.01148461]
[1767062899499,0.05744277,87087.0,87074.0,0.01148448]
[1767062899500,0.05748,87087.0,87074.0,0.01148448]
[1767062899719,0.01148303,87085.0,87070.0,0.05742502]
[1767062899932,0.06896277,87087.0,87072.0,0.00970637]
[1767062900133,0.01152,87087.0,87077.0,0.01148408]
[1767062900552,0.01152,87087.0,87070.0,0.75283097]
[1767062900553,0.01152,87087.0,87082.0,0.01148342]
[1767062900920,0.0002516,87088.0,87083.0,0.01148329]
[1767062901551,0.0002516,87088.0,87082.0,0.01148342]
[1767062901798,0.0002516,87088.0,87084.0,0.01148316]
[1767062902014,0.0002516,87088.0,87083.0,0.01148329]
[1767062902422,0.0002516,87088.0,87082.0,0.01148342]
[1767062902553,0.0002516,87088.0,87081.0,0.01148356]
[1767062902756,1.6e-06,87088.0,87084.0,0.01148316]
[1767062902964,0.01152,87093.0,87083.0,0.01148329]
[1767062902965,1.6e-06,87093.0,87085.0,0.41055]
[1767062903222,1.6e-06,87093.0,87085.0,0.42203303]
[1767062904253,1.6e-06,87093.0,87086.0,0.0114829]
[1767062904907,0.01186638,87099.0,87089.0,0.0114825]
[1767062904908,0.0003852,87099.0,87089.0,0.0114825]
[1767062905141,3.27312,87100.0,87097.0,0.01148145]
[1767062905347,3.27312,87100.0,87098.0,0.0088197]
[1767062905764,3.14216,87100.0,87098.0,0.0088197]
[1767062905986,3.14252055,87100.0,87098.0,0.0088197]
[1767062907428,3.14252055,87100.0,87089.0,0.0116825]
[1767062907634,3.14252055,87100.0,87089.0,0.0002]
[1767062907845,0.01148118,87099.0,87089.0,0.0002]
[1767062908052,0.01148131,87098.0,87090.0,0.01152]
[1767062908459,0.01148145,87097.0,87090.0,0.010971]
[1767062908879,0.01148131,87098.0,87090.0,0.010971]
[1767062909117,3.14252055,87100.0,87090.0,0.010971]
[1767062909332,3.1540016,87100.0,87090.0,0.010971]
[1767062909531,0.01148131,87098.0,87090.0,0.010971]
[1767062909725,0.01148118,87099.0,87090.0,0.010971]
[1767062910238,3.14252055,87100.0,87090.0,0.010971]
[1767062910902,3.1540016,87100.0,87090.0,0.010971]
[1767062911352,3.1390016,87100.0,87090.0,0.010971]
[1767062911567,0.01148131,87098.0,87090.0,0.010971]
[1767062912356,0.01148131,87098.0,87089.0,0.0002]
[1767062912558,0.01148118,87099.0,87091.0,0.01152]
[1767062912708,3.12752055,87100.0,87091.0,0.01152]
[1767062912908,3.1390016,87100.0,87091.0,0.01152]
[1767062913441,3.12752055,87100.0,87091.0,0.01152]
[1767062915099,0.01148118,87099.0,87091.0,0.01152]
[1767062915302,0.01148131,87098.0,87091.0,0.01152]
[1767062915456,0.01148118,87099.0,87091.0,0.01152]
[1767062915843,0.01148197,87093.0,87080.0,0.0001008]
[1767062916046,0.01148197,87093.0,87081.0,0.01152]
[1767062916047,0.00055,87091.0,87081.0,0.01152]
[1767062916464,0.01148211,87092.0,87081.0,0.01152]
[1767062916627,0.41496,87092.0,87081.0,0.01152]
[1767062916827,0.42644211,87092.0,87081.0,0.01152]
[1767062917022,0.42644211,87092.0,87080.0,0.0001008]
[1767062917223,0.42644211,87092.0,87081.0,0.01152]
[1767062917580,0.01148224,87091.0,87081.0,0.01152]
[1767062917923,0.42644224,87091.0,87081.0,0.01152]
[1767062918123,0.42664224,87091.0,87081.0,0.01152]
[1767062918380,0.41516,87091.0,87081.0,0.01152]
[1767062921218,0.0002,87091.0,87083.0,0.01148329]
[1767062921528,0.0002,87091.0,87082.0,0.01148342]
[1767062921829,0.0002,87091.0,87081.0,0.02300356]
[1767062922575,0.0002,87091.0,87081.0,0.01152]
[1767062922897,0.0002,87091.0,87081.0,0.02300356]
[1767062923299,0.0002,87091.0,87081.0,0.01152]
[1767062923797,0.0002,87091.0,87081.0,0.02300356]
[1767062923951,0.0002,87091.0,87082.0,0.01148342]
[1767062924733,0.0002,87091.0,87081.0,0.02300356]
[1767062924928,0.0002,87091.0,87082.0,0.01148342]
[1767062925353,0.0002,87091.0,87081.0,0.02300356]
[1767062926168,0.13625,87087.0,87080.0,8e-07]
[1767062926384,0.13625,87081.0,87080.0,8e-07]
[1767062926591,0.01148474,87072.0,87057.0,0.01148672]
[1767062926811,0.01148501,87070.0,87063.0,0.0115202]
[1767062927025,0.01148488,87071.0,87063.0,2e-07]
[1767062927228,0.01148501,87070.0,87063.0,2e-07]
[1767062928079,0.01148488,87071.0,87063.0,2e-07]
[1767062928278,0.01148501,87070.0,87063.0,2e-07]
[1767062928908,0.05742265,87074.0,87070.0,0.000289]
[1767062928909,0.0689069,87074.0,87070.0,0.000289]